bitfinex-derivatives/quotes_ETHF0:USTF0_20260213
["timestamp","ask_amount","ask_price","bid_price","bid_amount"]
[1770994057745,14.58979695,1993.5,1992.6,7.29165748]
[1770994057927,14.58979695,1993.9,1993.0,7.29497832]
[1770994058234,14.59449061,1994.2,1993.1,7.54599832]
[1770994058730,0.00469366,1994.2,1993.1,13.72129832]
[1770994058931,0.00469366,1994.2,1993.4,6.98658079]
[1770994059333,14.58979695,1994.5,1993.6,6.98658079]
[1770994059536,14.58979695,1994.5,1993.5,0.25097]
[1770994059736,14.58979695,1994.5,1993.4,6.98658079]
[1770994060034,14.58979695,1994.3,1993.0,6.97372294]
[1770994060431,14.58979695,1994.1,1993.0,6.97994689]
[1770994061131,14.58979695,1993.9,1993.0,0.00622395]
[1770994061340,0.00968448,1994.0,1993.0,7.1408783]
[1770994061639,14.58979695,1994.2,1993.0,7.1408783]
[1770994062435,14.58979695,1994.2,1993.1,7.37273037]
[1770994062746,14.58979695,1994.8,1993.8,7.10530243]
[1770994062942,14.58979695,1994.8,1993.9,5.85058394]
[1770994063140,14.58979695,1994.8,1993.5,5.59966394]
[1770994063537,14.58979695,1994.6,1993.1,5.59966394]
[1770994063838,14.58979695,1994.4,1993.3,5.58321294]
[1770994064033,0.00627062,1994.6,1993.5,5.58743587]
[1770994064739,0.00627062,1994.6,1993.9,5.57120284]
[1770994064935,0.00627062,1994.6,1994.0,6.09736435]
[1770994065137,0.00627062,1994.6,1993.6,5.84645435]
[1770994065442,0.00627062,1994.6,1993.8,5.84645435]
[1770994066236,14.59606757,1994.6,1993.8,5.84645435]
[1770994066433,0.00627062,1994.6,1993.8,5.83403397]
[1770994066735,0.00627062,1994.6,1993.9,6.08495397]
[1770994066938,0.00627062,1994.6,1993.9,5.83403397]
[1770994067330,14.59606757,1994.6,1993.6,5.66915462]
[1770994067530,0.00627062,1994.6,1993.6,5.66915462]
[1770994067737,14.59606757,1994.6,1993.8,5.66915462]
[1770994067933,14.59948143,1994.5,1993.5,5.65682667]
[1770994068140,0.00968448,1994.5,1993.9,5.65682667]
[1770994068438,14.59606757,1994.6,1993.8,0.25094]
[1770994068638,0.00627062,1994.6,1993.8,5.90776667]
[1770994068835,14.59606757,1994.6,1993.5,5.66858084]
[1770994069042,0.00627062,1994.6,1993.7,5.66858084]
[1770994069243,14.59606757,1994.6,1993.8,0.25094]
[1770994069538,14.59606757,1994.6,1993.7,5.66858084]
[1770994070247,14.58979695,1994.4,1993.1,12.08234272]
[1770994070432,0.00968448,1994.5,1993.7,5.90702272]
[1770994070639,14.59606757,1994.6,1993.7,5.90702272]
[1770994070839,14.59606757,1994.6,1993.5,5.53486767]
[1770994071442,0.00627062,1994.6,1993.6,5.78582767]
[1770994071837,14.58979695,1995.0,1994.0,5.769228]
[1770994073045,14.59397776,1995.0,1994.0,5.769228]
[1770994073336,14.58979695,1994.8,1993.7,5.43402887]
[1770994074042,0.00968448,1994.7,1993.5,0.25097]
[1770994074243,14.58979695,1994.6,1993.5,5.42204489]
[1770994074735,14.58979695,1994.4,1993.5,5.67301489]
[1770994076135,14.58979695,1994.4,1993.2,5.33623177]
[1770994076442,0.00968448,1994.3,1993.4,5.33623177]
[1770994076643,14.58979695,1994.4,1993.5,5.57059944]
[1770994076837,14.58979695,1994.4,1993.2,5.43648293]
[1770994077043,14.58979695,1994.2,1993.2,5.43648293]
[1770994077245,14.58979695,1994.2,1993.0,0.25725395]
[1770994077541,14.58979695,1994.2,1993.0,5.69373688]
[1770994077760,14.58979695,1994.6,1993.3,5.41987498]
[1770994078056,14.58979695,1994.6,1993.7,5.42413354]
[1770994078547,14.58979695,1994.6,1993.4,5.42413354]
[1770994078747,14.58979695,1994.4,1993.4,5.42413354]
[1770994078944,0.00418081,1995.0,1994.1,5.23305546]
[1770994079253,14.58979695,1995.3,1994.5,5.48390546]
[1770994080251,14.58979695,1995.9,1994.9,0.25079]
[1770994080452,14.58979695,1996.2,1995.2,5.22077868]
[1770994080643,14.58979695,1996.2,1994.8,6.16982]
[1770994080644,14.58979695,1996.2,1995.3,5.47152868]
[1770994080842,14.58979695,1996.2,1995.3,0.25075]
[1770994081049,14.58979695,1996.2,1995.0,4.95937417]
[1770994081244,15.05631931,1996.5,1995.4,4.95937417]
[1770994081449,18.02757503,1996.9,1996.0,9.37312094]
[1770994081668,15.05631931,1997.3,1995.8,9.35992954]
[1770994081956,15.05631931,1998.0,1996.4,6.16479]
[1770994082154,15.05631931,1998.0,1996.7,4.91686246]
[1770994082651,15.05631931,1997.4,1995.7,5.09705576]
[1770994082850,15.05631931,1997.4,1995.8,5.16728819]
[1770994083052,15.05631931,1997.4,1996.0,5.16728819]
[1770994083253,15.05631931,1997.7,1996.8,5.16728819]
[1770994083454,0.00547595,1998.0,1997.2,5.16728819]
[1770994083656,15.06179526,1998.0,1996.6,5.41298259]
[1770994083960,15.06179526,1998.0,1996.6,0.00487502]
[1770994084146,15.06179526,1998.0,1996.6,5.35235942]
[1770994084351,15.05631931,1997.7,1996.6,0.00487502]
[1770994084553,21.21739931,1997.7,1996.6,0.00487502]
[1770994084751,18.68126488,1997.4,1995.7,4.53525172]
[1770994084952,15.05631931,1997.2,1995.4,4.53525172]
[1770994085549,15.05631931,1997.2,1995.9,4.53525172]
[1770994085760,15.05631931,1997.8,1996.1,4.5244108]
[1770994085959,15.05631931,1997.8,1996.7,4.52758128]
[1770994086161,15.06179526,1998.0,1997.1,4.52758128]
[1770994086455,15.06179526,1998.0,1996.7,4.52758128]
[1770994086859,15.06179526,1998.0,1996.4,4.05093278]
[1770994087057,15.05631931,1997.8,1996.3,4.05093278]
[1770994087454,15.05631931,1997.8,1996.4,6.16508]
[1770994087656,15.05631931,1997.9,1996.7,4.05093278]
[1770994088061,18.68126488,1997.9,1996.3,4.04324961]
[1770994088257,15.05631931,1997.9,1996.3,4.04324961]
[1770994088452,15.05631931,1997.9,1996.1,13.6797016]
[1770994088453,15.05631931,1998.3,1997.3,4.04324961]
[1770994088662,15.05631931,1999.0,1997.7,4.3680461]
[1770994089658,15.06178293,1999.0,1997.7,4.3736924]
[1770994090257,15.06178293,1999.0,1997.7,2.03567292]
[1770994090856,0.00546362,1999.0,1998.1,3.39242943]
[1770994091061,15.06178293,1999.0,1998.1,3.39242943]
[1770994091360,15.06178293,1999.0,1997.7,0.0056463]
[1770994091361,0.00546362,1999.0,1997.9,3.39242943]
[1770994092257,0.00546362,1999.0,1998.3,3.38495808]
[1770994092555,3.62e-06,1999.0,1998.5,3.38495808]
[1770994092765,15.45239803,1999.4,1998.5,3.38495808]
[1770994092956,15.45239803,1999.4,1997.7,3.59952377]
[1770994093157,15.05631931,1998.4,1996.5,3.59387747]
[1770994093366,6.15739,1998.9,1996.4,4.51]
[1770994093367,15.05631931,1999.3,1997.6,3.59387747]
[1770994093552,15.05631931,1999.3,1997.8,3.59387747]
[1770994093755,0.39607872,1999.4,1998.0,3.58275881]
[1770994093957,0.39607872,1999.4,1998.2,3.58644291]
[1770994094156,15.45239803,1999.4,1998.2,3.58644291]
[1770994094356,15.45239803,1999.4,1997.9,3.58644291]
[1770994094765,15.45239803,1999.4,1998.1,2.8426949]
[1770994095265,15.45239803,1999.4,1997.8,2.8426949]
[1770994095662,15.45695917,1999.4,1997.9,3.0931149]
[1770994096359,15.45695917,1999.4,1998.0,2.8353079]
[1770994096561,15.45695917,1999.4,1998.4,2.8353079]
[1770994097160,0.40063986,1999.4,1998.4,2.8353079]
[1770994097361,15.45695917,1999.4,1998.4,2.8353079]
[1770994097563,0.40063986,1999.4,1998.4,2.8353079]
[1770994097961,15.45695917,1999.4,1998.4,2.8353079]
[1770994098266,0.40063986,1999.4,1998.6,4.21058158]
[1770994098959,15.45695917,1999.4,1998.2,3.27933823]
[1770994099161,0.40063986,1999.4,1998.6,3.27933823]
[1770994099360,0.40063986,1999.4,1998.3,6.15919]
[1770994099361,0.40063986,1999.4,1998.8,3.27933823]
[1770994099557,15.45695917,1999.4,1998.3,3.27933823]
[1770994099861,0.40063986,1999.4,1998.5,3.27160407]
[1770994100567,15.45695917,1999.4,1998.4,0.25036]
[1770994100766,15.45695917,1999.4,1998.2,3.27160407]
[1770994100962,15.45695917,1999.4,1997.9,3.06628135]
[1770994101167,15.45695917,1999.4,1997.8,0.00528912]
[1770994101168,15.05631931,1999.1,1997.8,0.00528912]
[1770994101466,15.05631931,1998.7,1997.2,3.31678135]
[1770994101764,15.05631931,1998.7,1997.7,3.05451699]
[1770994102161,15.05631931,1998.7,1997.2,0.25051]
[1770994102466,15.05631931,1998.7,1997.5,3.0585914]
[1770994102667,15.05631931,1999.0,1997.7,3.0585914]
[1770994102860,15.05631931,1999.3,1997.9,2.92348743]
[1770994103062,15.05631931,1999.3,1998.1,2.92348743]
[1770994103267,15.05631931,1999.3,1998.0,0.25041]
[1770994103470,15.05631931,1999.3,1998.0,3.17389743]
[1770994103672,15.05631931,1999.3,1998.2,3.1621737]
[1770994104975,44.49979695,2001.1,1999.6,2.4607928]
[1770994105165,15.05631931,2001.3,1999.7,2.4607928]
[1770994105362,15.05631931,2001.0,1999.4,2.4607928]
[1770994105565,15.05631931,2001.0,1999.0,2.4607928]
[1770994105566,3.62494557,2000.7,1999.0,2.4607928]
[1770994105874,6.14909,2001.6,1998.4,7.221]
[1770994105875,15.05631931,2001.3,1999.8,2.45320853]
[1770994106067,15.06115233,2001.3,1999.8,2.45675528]
[1770994106967,15.05631931,2001.2,1999.8,0.00354675]
[1770994107275,15.05631931,2001.2,1998.7,2.53518873]
[1770994107276,15.05631931,2000.2,1998.7,2.53518873]
[1770994107474,15.05631931,2000.2,1998.8,2.53518873]
[1770994107789,15.05631931,2000.2,1998.5,2.52741416]
[1770994108267,15.05631931,2000.2,1998.9,2.52741416]
[1770994108473,15.05631931,2001.0,1999.1,2.52741416]
[1770994108666,15.05631931,2000.8,1999.1,2.52741416]
[1770994108867,15.05631931,2000.6,1998.6,2.33955912]
[1770994109075,15.05631931,2000.2,1998.6,2.33955912]
[1770994109264,21.20974931,2000.2,1998.6,2.33955912]
[1770994109467,15.05631931,2000.1,1998.6,2.33955912]
[1770994109769,15.05631931,2000.1,1998.8,2.32740392]
[1770994111474,14.76307291,1999.9,1998.5,2.84228215]
[1770994111678,14.76307291,1999.5,1997.8,2.83727103]
[1770994111874,14.76307291,1999.5,1997.4,0.25048]
[1770994111875,14.76307291,1999.3,1997.9,0.25042]
[1770994112075,14.76307291,1999.3,1998.0,2.81934392]
[1770994112672,14.76307291,1999.3,1998.0,2.79029427]
[1770994114572,14.76307291,1999.3,1998.2,2.72610731]
[1770994114881,14.76307291,1999.6,1998.2,2.72610731]
[1770994115274,14.76307291,1999.6,1998.4,3.5904647]
[1770994115473,14.76814174,1999.9,1998.8,3.5904647]
[1770994115674,14.76814174,1999.9,1998.8,3.8407647]
[1770994116069,0.00506883,1999.9,1998.8,9.9984247]
[1770994116275,14.76307291,2000.7,1999.5,3.53539233]
[1770994116476,14.16648432,2001.1,1999.7,3.53539233]
[1770994117076,14.16648432,2000.9,1999.7,3.53539233]
[1770994117276,14.17016711,2000.9,1999.7,3.54037835]
[1770994117471,0.00368279,2000.9,1999.9,3.70475235]
[1770994117776,18.99509369,2000.8,1999.7,0.00498602]
[1770994117967,14.16648432,2000.0,1998.7,3.68680872]
[1770994118167,14.16648432,1999.8,1998.7,3.68680872]
[1770994118373,14.16648432,1999.6,1998.4,3.68680872]
[1770994118573,14.16648432,1999.9,1998.6,3.68680872]
[1770994118777,14.16648432,1999.7,1998.6,3.68680872]
[1770994118980,14.16648432,1999.7,1998.6,3.6906512]
[1770994119572,58.57181394,2000.2,1998.6,3.6906512]
[1770994119573,14.16648432,2000.2,1999.0,3.30381615]
[1770994119771,14.16648432,2000.2,1999.1,3.52138297]
[1770994120172,14.16648432,2000.2,1998.6,0.25417248]
[1770994120374,14.16648432,2000.0,1998.7,3.28147111]
[1770994120572,14.16648432,2000.0,1998.9,3.28147111]
[1770994121175,14.16648432,1999.8,1998.6,0.00384248]
[1770994121381,14.16648432,1999.6,1998.6,0.00384248]
[1770994121679,14.16648432,1999.4,1998.6,0.00384248]
[1770994121973,14.1702977,1999.4,1998.6,0.00384248]
[1770994122975,14.16648432,1999.1,1997.4,2.86180693]
[1770994123274,0.00381338,1999.4,1998.6,2.86180693]
[1770994123471,0.00381338,1999.4,1998.8,2.86180693]
[1770994123672,14.16648432,2000.0,1998.5,6.15856]
[1770994123673,14.16648432,2000.0,1999.0,2.86180693]
[1770994124472,14.16648432,2000.0,1998.4,2.84013232]
[1770994124671,14.16648432,2000.0,1998.4,2.84473637]
[1770994124672,14.16648432,1999.8,1998.4,2.84473637]
[1770994124873,14.16648432,1999.6,1998.4,0.00460405]
[1770994125072,14.16648432,1999.2,1997.8,2.93904122]
[1770994125270,14.16648432,1999.0,1997.5,2.94364527]
[1770994125471,14.16648432,1998.8,1997.5,2.94364527]
[1770994125674,50.02227394,1999.2,1997.5,2.94364527]
[1770994125675,14.16648432,1998.6,1997.5,2.94364527]
[1770994126072,14.17164679,1998.6,1997.5,2.94725244]
[1770994126471,14.17164679,1998.6,1997.7,2.92226258]
[1770994127076,14.17164679,1998.6,1997.5,0.00360717]
[1770994127278,14.17164679,1998.6,1997.5,2.80446369]
[1770994128086,14.17164679,1998.6,1997.5,0.00360717]
[1770994128378,14.16648432,1998.4,1996.9,2.77965256]
[1770994128582,14.16648432,1998.2,1996.9,2.77965256]
[1770994128985,14.16648432,1998.0,1996.9,3.03020256]
[1770994129486,14.16648432,1998.5,1997.2,2.77741772]
[1770994129784,14.16648432,1998.5,1997.4,2.77741772]
[1770994130285,14.16648432,1998.5,1997.4,0.00466555]
[1770994130786,14.16648432,1998.5,1997.4,3.11746215]
[1770994130982,0.00516247,1998.6,1997.6,9.2741466]
[1770994131188,14.16648432,1999.4,1998.2,3.1127966]
[1770994131485,14.16648432,1999.4,1997.9,3.1127966]
[1770994131882,14.16648432,1999.4,1998.0,3.332516]
[1770994132086,14.16648432,1999.4,1998.2,3.34214879]
[1770994132282,0.0055503,1999.4,1998.5,3.09176879]
[1770994132584,0.0055503,1999.4,1998.6,3.34209879]
[1770994133483,14.17203462,1999.4,1998.6,3.34209879]
[1770994133686,3e-07,1999.4,1998.6,9.50039879]
[1770994133881,14.16648432,2000.2,1999.1,3.94095957]
[1770994134086,14.16648432,2000.2,1998.5,3.94962248]
[1770994134285,14.16648432,2000.6,1999.4,4.19985248]
[1770994134480,14.16648432,2000.6,1998.9,3.94962248]
[1770994134686,14.16648432,2000.4,1998.9,3.94962248]
[1770994134986,14.41661432,2000.2,1998.9,0.0055965]
[1770994135186,14.16648432,2000.0,1998.9,0.0055965]
[1770994136181,6.15733,1999.0,1997.4,7.22603199]
[1770994136479,0.2503,1998.9,1997.2,10.8158873]
[1770994136786,4.76889154,1998.8,1997.2,10.8158873]
[1770994136985,4.76889154,1998.7,1997.2,10.8158873]
[1770994137281,11.29577423,1998.6,1997.2,0.00363131]
[1770994137490,6.40932,1998.4,1996.5,11.15995753]
[1770994137683,6.4103,1998.1,1996.2,10.91299884]
[1770994137877,4.88703423,1998.0,1996.4,11.11055227]
[1770994138282,4.88703423,1998.0,1996.3,0.25062]
[1770994138283,14.16648432,1997.9,1996.6,11.11055227]
[1770994138494,14.16648432,1997.9,1996.6,11.11609897]
[1770994138782,14.66648432,1997.4,1996.6,0.0055467]
[1770994139786,14.66648432,1997.4,1995.9,11.30307701]
[1770994139984,14.66648432,1997.4,1995.9,0.25066]
[1770994140186,14.66648432,1997.4,1995.6,11.05975079]
[1770994140382,14.16648432,1997.2,1996.0,11.05975079]
[1770994140896,14.17165407,1997.2,1996.0,11.06518846]
[1770994141489,14.17165407,1997.2,1996.0,0.00543767]
[1770994142085,14.17165407,1997.2,1996.0,11.16620503]
[1770994142683,14.17165407,1997.2,1996.0,17.33253503]
[1770994142995,0.00516975,1997.2,1996.5,11.01365796]
[1770994144090,0.00516975,1997.2,1996.2,6.16561]
[1770994144292,0.00516975,1997.2,1996.0,0.00543767]
[1770994144293,15.14243834,1997.2,1996.0,0.00543767]
[1770994144890,15.14243834,1997.2,1996.1,0.00543405]
[1770994145187,14.40412304,1997.1,1995.9,1.43290764]
[1770994145893,14.40412304,1997.1,1995.9,1.43904918]
[1770994146090,14.40412304,1997.1,1995.9,0.00614154]
[1770994146291,14.40412304,1997.1,1995.9,1.97936999]
[1770994146594,14.48819035,1996.7,1995.0,1.97936999]
[1770994146893,14.48819035,1996.7,1994.8,0.2508]
[1770994146894,14.48819035,1996.7,1995.1,1.96116777]
[1770994147091,14.35352408,1997.2,1995.9,2.2408398]
[1770994147797,14.35352408,1997.2,1995.9,2.24638264]
[1770994147999,14.35352408,1997.2,1996.2,2.22685417]
[1770994148393,14.35352408,1997.2,1995.9,0.00554284]
[1770994148589,14.35352408,1997.2,1996.1,2.22685417]
[1770994148794,0.00516975,1997.2,1996.5,2.52539204]
[1770994148991,0.5,1997.4,1996.7,2.52539204]
[1770994150000,0.50551381,1997.4,1996.7,2.52539204]
[1770994150292,23.87173499,1998.9,1996.4,6.16504]
[1770994150293,14.18562319,1998.2,1996.4,2.51113254]
[1770994150492,14.18562319,1998.2,1996.5,2.76173254]
[1770994151296,14.18966034,1998.2,1996.6,2.81322922]
[1770994151597,0.00403715,1998.2,1997.4,2.81322922]
[1770994151798,0.00403715,1998.2,1997.4,2.81916586]
[1770994152094,14.02582664,1998.8,1998.0,2.81560211]
[1770994152293,14.02582664,1999.1,1998.0,2.81560211]
[1770994152499,14.02582664,1999.9,1998.2,2.81560211]
[1770994152695,14.02582664,1999.6,1997.9,2.81560211]
[1770994152898,14.11217067,1999.2,1997.6,2.62430222]
[1770994153193,14.11217067,1999.2,1997.4,2.63023886]
[1770994153194,14.11217067,1998.8,1997.4,2.63023886]
[1770994153394,14.11217067,1998.8,1997.4,0.00593664]
[1770994153698,14.11217067,1998.8,1997.4,2.88071886]
[1770994153998,14.11217067,1998.8,1997.8,0.25043]
[1770994154198,14.11217067,1998.8,1997.9,2.61013222]
[1770994154394,14.11217067,1998.8,1997.8,2.86056222]
[1770994154995,14.11217067,1998.8,1997.8,2.61013222]
[1770994155199,14.30664161,1999.1,1998.0,2.19882504]
[1770994155400,14.30664161,1999.1,1997.9,0.25042]
[1770994155401,14.30664161,1999.1,1997.9,2.44924504]
[1770994155890,14.30664161,1999.1,1998.1,6.4102]
[1770994156093,14.30979301,1999.2,1998.2,2.18473066]
[1770994156291,0.00529567,1999.2,1998.5,0.25035]
[1770994156495,0.00529567,1999.2,1998.6,2.18473066]
[1770994157305,5.67e-06,1999.2,1998.8,2.22220111]
[1770994157797,5.67e-06,1999.2,1999.0,2.20381532]
[1770994158198,14.27442824,2000.5,1999.4,2.20807367]
[1770994158400,14.27442824,2000.5,1999.6,2.20807367]
[1770994158998,14.27442824,2000.5,1999.3,3.42922983]
[1770994159199,14.2801911,2000.5,1999.4,3.42922983]
[1770994159804,0.00576286,2000.5,1999.4,3.42922983]
[1770994160105,13.89113348,2000.5,1999.4,3.42922983]
[1770994161402,13.89113348,2000.5,1999.3,0.00552128]
[1770994162002,13.89113348,2000.5,1998.6,3.34656439]
[1770994162199,13.88537062,2000.2,1998.6,3.34656439]
[1770994163006,13.88537062,2000.0,1998.6,0.00624479]
[1770994163601,13.88537062,2000.0,1998.0,3.12487345]
[1770994163602,13.88537062,1999.6,1998.1,3.36351794]
[1770994163903,0.25022,1999.5,1998.1,3.11311794]
[1770994164103,13.88537062,1999.4,1998.1,3.11311794]
[1770994164508,13.88537062,1999.4,1998.1,3.11835809]
[1770994165010,13.88537062,1999.4,1998.3,2.903759]
[1770994165310,13.88537062,1999.4,1998.1,0.00524015]
[1770994165511,13.88537062,1999.4,1998.1,2.90899915]
[1770994165710,13.88537062,1999.4,1998.1,0.00524015]
[1770994166110,13.88537062,1999.2,1998.1,0.00524015]
[1770994166306,13.88537062,1999.0,1997.3,3.14524443]
[1770994166706,13.88537062,1999.0,1997.7,3.12735083]
[1770994166908,13.88537062,1999.0,1997.9,2.92451315]
[1770994167107,13.88537062,1999.0,1997.6,2.92451315]
[1770994167410,13.8903551,1999.0,1997.6,2.92829861]
[1770994168309,13.8903551,1999.0,1997.9,0.25042]
[1770994168607,13.8903551,1999.0,1997.6,0.00378546]
[1770994169106,13.8903551,1999.0,1997.6,3.22017325]
[1770994170318,13.8903551,1999.0,1997.7,3.45261266]
[1770994170909,13.8903551,1999.0,1997.6,0.00378546]
[1770994171110,14.67938756,1998.8,1997.6,3.26597546]
[1770994171310,14.67938756,1998.8,1997.6,3.51642546]
[1770994171712,14.67938756,1998.8,1997.8,0.25043]
[1770994171911,0.00498448,1999.0,1998.1,3.24484283]
[1770994172116,0.00498448,1999.0,1998.0,0.25041]
[1770994172117,0.00498448,1999.0,1998.2,9.65474283]
[1770994172311,0.00498448,1999.0,1998.5,3.24484283]
[1770994172512,0.00498448,1999.0,1998.4,3.49520283]
[1770994173420,14.67938756,1999.8,1998.6,0.25033]
[1770994173612,14.67938756,1999.6,1998.1,4.24612803]
[1770994174322,14.68506991,1999.6,1998.4,3.97797143]
[1770994175015,14.68506991,1999.6,1998.5,0.25035]
[1770994175415,14.68506991,1999.6,1998.7,0.00543405]
[1770994175816,14.68506991,1999.6,1998.7,4.12240638]
[1770994176016,0.00568235,1999.6,1998.7,4.12240638]
[1770994176224,0.00568235,1999.6,1999.0,3.85385348]
[1770994176423,0.00568235,1999.6,1999.0,3.85910055]
[1770994176718,13.73787557,1999.6,1999.0,0.00524707]
[1770994177018,13.73219322,2000.5,1999.3,10.65857096]
[1770994177217,13.73219322,2000.8,1999.7,4.50259096]
[1770994177522,6.10245133,2001.8,1999.6,6.15521]
[1770994177523,13.73219322,2001.1,2000.3,4.50259096]
[1770994177926,13.73637658,2001.1,2000.0,4.48449898]
[1770994178220,13.73637658,2001.1,2000.1,4.73464898]
[1770994178718,2.96832499,2002.3,2001.3,4.45919098]
[1770994178913,11.49035993,2002.4,2000.7,0.25007]
[1770994179124,13.73219322,2002.0,2000.8,0.58594521]
[1770994179313,13.73219322,2001.2,1999.5,3.95515995]
[1770994179521,13.73219322,2001.2,1998.4,6.15866]
[1770994179522,13.73219322,2000.2,1998.6,3.95515995]
[1770994179720,13.73713042,2000.2,1998.6,3.9608688]
[1770994179923,13.73713042,2000.2,1998.7,3.94347255]
[1770994180822,13.73713042,2000.2,1999.1,5.01439486]
[1770994181018,0.0049372,2000.2,1999.6,6.15518]
[1770994181219,6.14843,2001.9,1999.9,5.01439486]
[1770994181220,13.73219322,2001.1,1999.9,5.01439486]
[1770994181420,13.31659322,2001.1,1999.9,5.01439486]
[1770994182121,13.32264791,2001.1,1999.9,5.01439486]
[1770994182624,13.73219322,2000.9,1999.2,5.41714115]
[1770994184022,13.73219322,2000.9,1999.4,5.36302371]
[1770994184621,13.73219322,2000.5,1998.9,5.36302371]
[1770994184822,0.25008,2000.6,1998.6,0.00570885]
[1770994184823,13.73219322,2000.3,1998.6,5.35344588]
[1770994185018,13.73219322,2000.1,1998.6,5.35344588]
[1770994185433,13.73219322,2000.1,1998.6,0.00570885]
[1770994185630,13.73219322,1999.9,1998.6,0.00570885]
[1770994186425,13.73219322,1999.9,1998.6,5.26190418]
[1770994186627,13.73219322,2000.4,1999.2,5.25619533]
[1770994186824,13.73219322,2000.4,1998.9,4.89827119]
[1770994187028,13.73219322,2000.4,1999.3,4.89827119]
[1770994187428,13.73219322,2000.4,1998.7,4.89827119]
[1770994187733,13.73219322,2000.4,1998.9,4.89827119]
[1770994188531,13.73219322,2000.4,1998.8,0.25031]
[1770994188933,13.73219322,2000.4,1998.8,5.29899343]
[1770994189931,13.98230322,2000.4,1998.6,0.00570885]
[1770994190136,13.98232322,2000.2,1998.6,0.00570885]
[1770994190328,13.73219322,2000.0,1998.6,0.00570885]
[1770994190637,13.73219322,1999.8,1998.7,0.00543405]
[1770994190839,13.73219322,1999.8,1998.6,0.00570885]
[1770994191038,6.40402,2000.1,1998.1,5.30582491]
[1770994191039,13.73219322,1999.4,1998.1,5.30582491]
[1770994191235,13.73219322,1999.2,1998.2,0.57923441]
[1770994191429,13.73219322,1999.2,1997.1,6.16268]
[1770994191430,13.73219322,1999.0,1997.4,6.47013021]
[1770994191638,13.73219322,1998.6,1996.6,6.47013021]
[1770994191937,9.12571499,1998.9,1996.9,0.25054]
[1770994191938,13.73219322,1998.4,1996.9,0.25054]
[1770994192239,13.73664659,1998.4,1996.9,0.2554409]
[1770994192441,13.73219322,1998.2,1996.9,0.0049009]
[1770994192632,13.73219322,1998.0,1996.9,0.0049009]
[1770994192941,13.73219322,1997.8,1996.1,6.36690974]
[1770994193145,13.73219322,1997.6,1996.1,6.36690974]
[1770994193443,13.73219322,1997.6,1996.0,6.61756974]
[1770994193833,13.73219322,1997.6,1996.0,6.6228815]
[1770994194239,13.73219322,1997.6,1996.1,6.3545498]
[1770994194839,13.73219322,1997.2,1996.0,0.00531176]
[1770994195040,13.73219322,1997.2,1996.0,6.37298861]
[1770994196745,13.73219322,1997.2,1996.0,0.00531176]
[1770994197433,13.73219322,1997.2,1996.0,7.07985981]
[1770994197833,13.73219322,1997.2,1996.0,0.00531176]
[1770994198034,13.73219322,1997.2,1996.0,7.06711997]
[1770994198242,13.73219322,1997.9,1996.4,7.06180821]
[1770994198438,13.73219322,1997.9,1996.6,7.06180821]
[1770994198744,19.89274322,1997.9,1996.0,0.00531176]
[1770994198945,13.73219322,1997.7,1996.0,6.75590299]
[1770994199142,13.73219322,1997.6,1996.0,6.75590299]
[1770994199441,13.73219322,1997.6,1996.0,0.00531176]
[1770994199837,13.73219322,1997.4,1996.0,0.00531176]
[1770994200233,13.73219322,1997.4,1996.0,6.74335351]
[1770994200436,13.73219322,1997.2,1996.0,0.00531176]
[1770994200636,13.73219322,1997.0,1995.8,6.70790793]
[1770994200836,14.95389898,1998.1,1996.2,6.71488961]
[1770994201030,14.93589898,1997.9,1996.2,6.71488961]
[1770994201235,14.93589898,1997.9,1996.6,7.39081628]
[1770994201638,14.94080804,1997.9,1996.9,7.64136628]
[1770994201940,14.95389898,1999.2,1997.5,0.25047]
[1770994202145,14.95389898,1999.0,1997.5,0.25047]
[1770994202340,14.95389898,1999.0,1997.2,7.37811767]
[1770994202547,14.95389898,1998.8,1996.9,0.25054]
[1770994202842,14.95389898,1998.5,1996.9,14.59575832]
[1770994203043,14.95389898,1998.5,1997.1,0.25052]
[1770994203342,14.95389898,1998.5,1996.9,8.18173832]
[1770994204044,14.95389898,1998.5,1996.6,0.00642158]
[1770994204045,14.95389898,1998.1,1996.6,0.00642158]
[1770994204239,3.61666632,1998.2,1996.6,0.00642158]
[1770994204240,14.95389898,1997.9,1996.6,0.00642158]
[1770994204944,14.95389898,1997.3,1995.7,6.91461815]
[1770994205436,14.95389898,1997.3,1995.8,7.16529815]
[1770994205643,14.95389898,1997.3,1996.2,6.91461815]
[1770994205844,14.9592433,1997.3,1996.2,6.92008892]
[1770994206238,14.95389898,1997.6,1996.7,0.25057]
[1770994206439,14.95389898,1997.6,1996.3,6.90181114]
[1770994207347,14.95814475,1997.6,1996.3,6.90181114]
[1770994208147,14.95814475,1997.6,1996.2,0.00547077]
[1770994208447,15.20860475,1997.6,1996.2,0.00547077]
[1770994208643,14.95389898,1997.5,1996.2,0.00547077]
[1770994209050,14.95389898,1997.5,1996.2,6.06635547]
[1770994210051,14.95389898,1997.5,1996.2,0.00547077]
[1770994210353,14.95389898,1997.3,1996.2,0.00547077]
[1770994210852,18.5705653,1997.3,1996.2,0.00547077]
[1770994211446,14.95389898,1997.1,1996.2,0.00547077]
[1770994213048,6.16359,1996.9,1995.2,6.65491771]
[1770994213256,14.95389898,1996.6,1995.2,6.65491771]
[1770994213452,14.95389898,1996.6,1995.3,6.90566771]
[1770994214150,14.95389898,1996.6,1995.3,6.91035011]
[1770994214653,14.95389898,1996.6,1995.3,6.64687018]
[1770994215054,14.95389898,1996.6,1995.3,0.0046824]
[1770994215350,3.61666632,1996.3,1995.3,0.0046824]
[1770994215544,14.95389898,1996.0,1994.2,7.291]
[1770994215748,14.95389898,1995.8,1994.3,7.11924972]
[1770994216246,14.95389898,1995.4,1994.0,0.2509]
[1770994216448,14.95389898,1995.0,1993.4,7.35732057]
[1770994216647,14.95389898,1994.6,1993.4,0.00413793]
[1770994217045,3.61666632,1994.3,1993.4,0.00413793]
[1770994217352,14.95389898,1994.2,1992.8,7.11916357]
[1770994217554,14.95389898,1994.2,1992.4,7.11916357]
[1770994217756,14.95389898,1993.8,1992.4,7.11916357]
[1770994218050,14.95389898,1993.8,1992.6,7.10632199]
[1770994218353,14.95389898,1993.8,1992.6,7.11211416]
[1770994218545,14.95389898,1993.8,1992.6,0.00579217]
[1770994218742,14.95389898,1993.5,1992.0,7.10632199]
[1770994219146,3.61666632,1993.2,1992.0,7.10632199]
[1770994219447,14.95389898,1993.1,1992.0,7.10632199]
[1770994219656,3.61666632,1993.6,1991.8,0.49930731]
[1770994219657,18.5705653,1993.6,1991.8,0.49930731]
[1770994219852,14.95389898,1993.4,1991.8,7.21354667]
[1770994220346,14.95389898,1993.4,1991.9,6.96353887]
[1770994220654,14.95389898,1993.4,1991.9,12.6493321]
[1770994220950,14.95389898,1993.4,1991.9,6.96353887]
[1770994221545,14.95389898,1993.3,1991.9,6.96353887]
[1770994222950,14.95389898,1993.3,1991.8,0.25185841]
[1770994222951,6.17443,1993.4,1990.7,6.43408]
[1770994222952,18.6277903,1992.2,1990.7,6.43408]
[1770994223151,15.01112398,1992.2,1990.8,0.1253382]
[1770994223851,0.00601418,1992.2,1991.0,0.11637576]
[1770994224045,15.01665791,1992.2,1990.8,0.00417425]